bitfinex-derivatives/quotes_ETHF0:USTF0_20250410
["timestamp","ask_amount","ask_price","bid_price","bid_amount"]
[1744307827745,4.09485,1512.0,1511.9,1.32366]
[1744307828146,11.95611,1512.4,1511.9,3.2078]
[1744307828449,5.8923,1512.4,1512.0,6.01573]
[1744307828649,2.7031,1512.3,1512.2,1.32347]
[1744307828848,4.02648,1512.3,1512.2,1.32347]
[1744307829047,1.32349,1512.2,1512.1,1.3235]
[1744307829344,1.32349,1512.2,1511.7,0.0872]
[1744307829345,1.32391,1511.7,1511.3,3.2078]
[1744307829542,4.53171,1511.7,1511.5,1.32407]
[1744307829944,7.23481,1511.7,1511.3,2.7068]
[1744307830153,2.7031,1511.7,1511.6,1.33394199]
[1744307830544,0.00994199,1511.8,1511.7,1.32391]
[1744307830744,0.00994199,1511.8,1511.7,3.97691]
[1744307831243,0.00994199,1511.8,1511.7,8.97691]
[1744307831945,0.00994199,1511.8,1511.7,3.97691]
[1744307832848,1.33376199,1511.8,1511.7,3.97691]
[1744307833147,0.00994199,1511.8,1511.7,3.97691]
[1744307833752,0.00994199,1511.8,1511.7,8.97691]
[1744307834158,0.00994199,1511.8,1511.7,3.97691]
[1744307834356,0.00994199,1511.8,1511.7,8.97691]
[1744307834658,1.99e-06,1511.8,1511.7,8.97691]
[1744307836659,1.32306,1512.7,1512.6,1.32303]
[1744307836859,1.32321,1512.6,1512.5,1.32318]
[1744307837358,4.08681,1512.7,1512.6,1.32312]
[1744307837554,2.7637,1512.7,1512.6,1.32312]
[1744307837762,2.74194199,1512.8,1512.7,1.32303]
[1744307838059,0.00994199,1512.8,1512.7,1.32303]
[1744307838252,0.00994199,1512.8,1512.7,4.53083]
[1744307838562,1.32303,1512.7,1512.6,2.5837]
[1744307838853,1.32312,1512.6,1512.5,0.00994199]
[1744307839055,7.08412,1512.6,1512.5,0.00994199]
[1744307839355,8.87632,1512.6,1512.5,0.00994199]
[1744307839559,11.64002,1512.6,1512.5,0.00994199]
[1744307839755,5.3169,1512.6,1512.5,1.33315199]
[1744307839960,0.00994199,1512.8,1512.7,1.32303]
[1744307840156,4.54069199,1512.8,1512.7,1.32303]
[1744307840460,8.21774199,1512.8,1512.7,1.32303]
[1744307840662,3.21774199,1512.8,1512.7,1.32303]
[1744307841162,2.74344199,1512.8,1512.7,1.32303]
[1744307841655,1.32303,1512.7,1512.6,1.32307]
[1744307841856,7.27425199,1512.8,1512.7,1.32303]
[1744307842060,0.00994199,1512.8,1512.7,1.32303]
[1744307842954,2.62334199,1512.8,1512.7,1.32303]
[1744307844356,1.32312,1512.6,1512.5,0.00994199]
[1744307844561,1.32312,1512.6,1512.2,1.3234]
[1744307844562,1.32338,1512.3,1512.2,1.3234]
[1744307844860,3.2078,1512.3,1511.7,10.19283591]
[1744307845059,4.53158,1511.9,1511.8,1.32382]
[1744307845254,1.32382,1511.8,1511.7,10.19283591]
[1744307845454,3.93722,1511.8,1511.7,11.51674591]
[1744307845654,2.6134,1511.8,1511.7,11.51674591]
[1744307846156,3.93722,1511.8,1511.7,11.51674591]
[1744307846357,2.6134,1511.8,1511.7,11.51674591]
[1744307846557,3.93722,1511.8,1511.7,10.19283591]
[1744307846862,3.93722,1511.8,1511.7,11.51674591]
[1744307847064,8.93722,1511.8,1511.7,6.09143591]
[1744307847257,1.324,1511.6,1511.5,15.28633153]
[1744307847456,11.6208,1511.6,1511.5,15.28633153]
[1744307847665,16.6208,1511.6,1511.5,15.28633153]
[1744307848160,16.6208,1511.6,1511.5,7.85111342]
[1744307848664,1.32408,1511.5,1511.4,1.99e-06]
[1744307849061,10.2988,1511.6,1511.4,1.99e-06]
[1744307849262,1.32408,1511.5,1511.4,1.99e-06]
[1744307850261,1.32395,1511.7,1511.4,1.99e-06]
[1744307850461,1.32391,1511.7,1511.6,1.32395]
[1744307850765,1.32391,1511.7,1511.6,1.324]
[1744307850967,3.2078,1511.8,1511.6,1.324]
[1744307851167,3.2078,1511.8,1511.7,1.32391]
[1744307851468,4.53162,1511.8,1511.7,1.32391]
[1744307851665,3.2078,1511.8,1511.7,1.32391]
[1744307852767,1.33367199,1511.9,1511.8,1.32382]
[1744307852962,2.51714199,1511.9,1511.8,1.32382]
[1744307853163,0.00994199,1511.9,1511.8,1.32382]
[1744307853561,0.00994199,1511.9,1511.8,6.84858319]
[1744307853562,1.99e-06,1511.9,1511.8,6.84858319]
[1744307853762,1.99e-06,1511.9,1511.8,3.86932]
[1744307853957,1.99e-06,1511.9,1511.8,8.86932]
[1744307854364,1.99e-06,1511.9,1511.8,3.86932]
[1744307854564,1.99e-06,1511.9,1511.8,8.86932]
[1744307855669,1.99e-06,1511.9,1511.8,3.86932]
[1744307855975,1.99e-06,1511.9,1511.8,8.86932]
[1744307856271,1.99e-06,1511.9,1511.8,3.86932]
[1744307857473,1.99e-06,1511.9,1511.8,1.32382]
[1744307858065,3.2078,1512.4,1512.3,1.32338]
[1744307858371,2.6981,1512.6,1512.5,1.32321]
[1744307858864,3.98994,1512.7,1512.4,2.6975]
[1744307859066,2.6669,1512.7,1512.6,1.32312]
[1744307859266,2.67684199,1512.7,1512.6,1.32312]
[1744307860573,0.00994199,1512.7,1512.6,4.02062]
[1744307860975,3.21774199,1512.7,1512.6,4.02062]
[1744307861172,3.21774199,1512.7,1512.6,1.32312]
[1744307861367,2.59364199,1512.7,1512.6,1.32312]
[1744307862277,0.00994199,1512.7,1512.6,1.32312]
[1744307863673,11.52553199,1512.7,1512.4,0.00994199]
[1744307863879,3.9069,1512.6,1512.5,1.32321]
[1744307864073,1.32321,1512.5,1512.4,1.33317199]
[1744307864271,3.91521,1512.5,1512.4,1.33317199]
[1744307864472,8.91521,1512.5,1512.4,1.33317199]
[1744307864773,2.592,1512.5,1512.4,1.33317199]
[1744307865776,3.91521,1512.5,1512.4,1.33317199]
[1744307866174,0.00994199,1512.7,1512.6,1.32312]
[1744307866878,7.13277199,1512.7,1512.6,1.32312]
[1744307867179,2.60194199,1512.7,1512.6,1.32312]
[1744307867483,2.60194199,1512.7,1512.4,0.00994199]
[1744307867484,1.32321,1512.5,1512.4,0.00994199]
[1744307867780,0.00994199,1512.7,1512.6,1.32312]
[1744307868378,0.00994199,1512.7,1512.6,3.87412]
[1744307871382,2.49154199,1512.7,1512.6,3.87412]
[1744307871677,2.49154199,1512.7,1512.6,1.32312]
[1744307872075,0.00994199,1512.7,1512.6,1.32312]
[1744307872580,8.81465199,1512.7,1512.4,3.31798199]
[1744307872777,3.81465199,1512.7,1512.6,1.32312]
[1744307873179,8.81465199,1512.7,1512.6,1.32312]
[1744307873882,3.81465199,1512.7,1512.6,1.32312]
[1744307874084,1.32315,1512.6,1512.4,5.78848199]
[1744307874277,2.7319,1512.5,1512.4,3.80374199]
[1744307874983,0.00994199,1512.7,1512.5,1.32321]
[1744307875283,2.74184199,1512.7,1512.6,1.32312]
[1744307876381,4.06487199,1512.7,1512.6,1.32312]
[1744307876582,2.74184199,1512.7,1512.6,1.32312]
[1744307876785,4.06487199,1512.7,1512.6,1.32312]
[1744307876980,11.04960199,1512.7,1512.4,0.00994199]
[1744307877280,4.531,1512.6,1512.5,1.32321]
[1744307877479,1.32321,1512.5,1512.4,1.99e-06]
[1744307877681,6.49681,1512.5,1512.4,1.99e-06]
[1744307877888,11.49681,1512.5,1512.4,1.99e-06]
[1744307878388,3.93411,1512.5,1512.4,1.32330199]
[1744307879083,12.47728199,1512.7,1512.4,15.19980199]
[1744307879084,1.99e-06,1512.7,1512.4,15.19980199]
[1744307879277,0.53344607,1513.5,1512.7,3.30747]
[1744307879278,1.32244,1513.4,1512.7,3.30747]
[1744307879478,2.5318,1513.3,1513.2,1.32253]
[1744307879987,1.32238,1513.5,1513.1,6.51448]
[1744307880193,2.5318,1513.5,1513.4,1.32242]
[1744307880483,2.54174199,1513.5,1513.4,1.32242]
[1744307880682,1.32242,1513.4,1513.3,4.53029]
[1744307880986,2.54174199,1513.5,1513.2,5.6756]
[1744307881189,1.32246,1513.4,1513.3,1.32249]
[1744307881385,1.32246,1513.4,1513.2,4.53035]
[1744307881584,2.5318,1513.3,1513.1,1.33259199]
[1744307881787,2.5318,1513.3,1513.2,1.3226]
[1744307882087,12.89281288,1513.5,1513.4,1.32242]
[1744307882390,4.34739289,1513.5,1513.4,4.53022]
[1744307882691,1.53572289,1513.5,1513.4,9.53022]
[1744307882882,2.5636,1513.9,1513.8,1.32207]
[1744307883284,18.07004507,1514.2,1514.1,1.32181]
[1744307883488,18.07004507,1514.2,1514.0,1.32185]
[1744307883988,1.3219,1514.0,1513.9,0.00990851]
[1744307884190,1.3219,1514.0,1513.9,1.33188851]
[1744307884391,18.07004507,1514.2,1513.9,1.33188851]
[1744307884591,1.3219,1514.0,1513.9,1.33188851]
[1744307884791,1.3219,1514.0,1513.9,0.00990851]
[1744307885291,3.88548,1514.1,1514.0,1.3219]
[1744307885483,3.88548,1514.1,1513.9,0.00990851]
[1744307885685,3.88548,1514.1,1514.0,1.3219]
[1744307886087,1.3219,1514.0,1513.9,0.00990851]
[1744307886282,3.8697,1514.0,1513.9,0.00990851]
[1744307886682,2.5478,1514.0,1513.9,0.00990851]
[1744307886884,18.07004507,1514.2,1513.9,0.00990851]
[1744307886885,3.93233,1514.2,1514.0,1.3219]
[1744307887186,0.00990851,1514.3,1513.9,6.52266851]
[1744307887391,0.00990851,1514.3,1514.2,1.32172]
[1744307887589,2.55770851,1514.3,1514.2,1.32172]
[1744307888087,2.55770851,1514.3,1514.2,3.78732]
[1744307889298,0.00990851,1514.3,1514.2,3.78732]
[1744307889494,0.50466844,1515.2,1514.2,3.78732]
[1744307889495,18.76145507,1515.3,1514.4,3.30385]
[1744307889687,5.7213,1515.1,1514.9,1.32103]
[1744307889994,1.32126,1514.8,1514.5,3.2078]
[1744307890195,2.5135,1514.7,1514.6,1.32136]
[1744307891493,2.5135,1514.7,1514.6,3.93576]
[1744307891693,3.83486,1514.7,1514.6,1.32137]
[1744307891891,1.32137,1514.6,1514.5,0.00990851]
[1744307892101,3.90367,1514.6,1514.5,1.33136851]
[1744307892291,2.5823,1514.6,1514.5,1.33136851]
[1744307892805,3.90367,1514.6,1514.5,1.33136851]
[1744307893294,2.5823,1514.6,1514.5,1.33136851]
[1744307893691,0.52417329,1515.4,1514.5,12.07190851]
[1744307893889,3.2078,1514.9,1514.8,1.32115]
[1744307894195,1.32122,1514.8,1514.6,2.651]
[1744307894393,2.5823,1514.8,1514.7,4.52907]
[1744307894588,1.32106,1515.0,1514.9,1.32108]
[1744307894793,1.3212,1514.8,1514.7,1.32125]
[1744307895001,1.32117,1514.9,1514.8,1.32119]
[1744307895294,2.6933,1514.9,1514.8,1.32119]
[1744307895497,4.01441,1514.9,1514.8,1.32119]
[1744307897198,2.6933,1514.9,1514.8,1.32119]
[1744307897400,4.01441,1514.9,1514.8,1.32119]
[1744307898397,2.6933,1514.9,1514.8,1.32119]
[1744307898600,1.32122,1514.8,1514.7,1.32122]
[1744307898803,4.01446,1514.9,1514.8,1.3212]
[1744307899095,14.24489851,1515.1,1514.7,3.30318]
[1744307899407,2.6312,1515.0,1514.9,1.32111]
[1744307899602,2.6312,1515.0,1514.9,3.81101]
[1744307900599,2.6312,1515.0,1514.9,1.32111]
[1744307901299,17.9,1515.0,1514.6,1.32133]
[1744307901603,3.2078,1514.7,1514.5,0.00990851]
[1744307901798,2.4777,1514.6,1514.5,1.33130851]
[1744307902697,2.4777,1514.6,1514.5,3.81170851]
[1744307902896,8.61979,1514.9,1514.6,1.32129]
[1744307902897,1.32132,1514.7,1514.6,1.32129]
[1744307903605,1.32137,1514.6,1514.5,3.81168851]
[1744307904005,1.32136,1514.7,1514.6,1.32135]
[1744307904205,4.01756,1514.7,1514.6,1.32135]
[1744307904706,1.32137,1514.6,1514.5,1.33136851]
[1744307904901,4.01757,1514.6,1514.5,0.00990851]
[1744307905103,4.01757,1514.6,1514.5,1.33136851]
[1744307905407,2.6962,1514.6,1514.5,1.33136851]
[1744307905914,4.01757,1514.6,1514.5,1.33136851]
[1744307907199,4.01757,1514.6,1514.5,0.00990851]
[1744307907399,4.01757,1514.6,1514.5,1.33136851]
[1744307908504,4.01757,1514.6,1514.5,0.00990851]
[1744307909104,4.01757,1514.6,1514.5,1.33136851]
[1744307909607,4.01757,1514.6,1514.5,2.74040851]
[1744307909803,4.01757,1514.6,1514.5,4.06186851]
[1744307910104,5.852,1515.0,1514.8,1.32113]
[1744307910307,9.67022,1515.0,1514.9,1.32111]
[1744307910710,0.00990851,1515.1,1515.0,1.32102]
[1744307910910,8.35900851,1515.1,1514.5,0.00990851]
[1744307911106,1.32137,1514.6,1514.5,0.00990851]
[1744307911413,11.57017,1514.6,1514.5,0.00990851]
[1744307911709,13.36237,1514.6,1514.5,0.00990851]
[1744307911910,16.57017,1514.6,1514.5,0.00990851]
[1744307912105,3.30366,1514.5,1513.8,3.2078]
[1744307912412,1.32206,1513.9,1513.8,2.5446]
[1744307912605,1.32206,1513.9,1513.8,7.07447]
[1744307912809,1.32193,1514.0,1513.8,10.7524]
[1744307913108,1.32193,1514.0,1513.9,3.92508]
[1744307913814,3.78688851,1514.1,1513.9,3.92508]
[1744307914115,0.00990851,1514.1,1514.0,4.5297]
[1744307914411,0.00990851,1514.1,1514.0,14.7828]
[1744307914811,12.79958,1514.6,1514.5,1.32146]
[1744307914812,9.4961,1514.6,1514.5,1.32146]
[1744307915006,5.852,1514.8,1514.6,1.32136]
[1744307915211,1.32135,1514.7,1514.6,3.92446]
[1744307915411,3.77632,1514.8,1514.7,1.32129]
[1744307915608,3.77632,1514.8,1514.7,3.2078]
[1744307916112,2.4551,1514.8,1514.6,3.93437851]
[1744307916311,1.32127,1514.8,1514.7,3.88269]
[1744307916508,1.32127,1514.8,1514.7,5.7692]
[1744307916705,1.32127,1514.8,1514.7,7.09049]
[1744307916911,1.32127,1514.8,1514.7,5.7692]
[1744307917111,1.32127,1514.8,1514.7,2.5614]
[1744307917313,1.32129,1514.7,1514.6,0.00990851]
[1744307918919,1.32127,1514.8,1514.6,0.00990851]
[1744307919119,1.32129,1514.7,1514.6,1.33126851]
[1744307919323,1.32126,1514.8,1514.7,1.32128]
[1744307919619,1.3212,1514.8,1514.7,5.7002]
[1744307920317,1.32129,1514.7,1514.6,0.00990851]
[1744307920923,1.32129,1514.7,1514.6,1.33127851]
[1744307921126,1.32129,1514.7,1514.6,3.21770851]
[1744307921328,0.00990851,1514.9,1514.8,1.3212]
[1744307921619,0.00990851,1514.9,1514.8,4.529]
[1744307921819,1.32084,1515.3,1515.2,1.32085]
[1744307922012,5.2994,1515.5,1515.2,3.2078]
[1744307922228,1.32068,1515.4,1515.3,3.90972]
[1744307922435,1.32068,1515.4,1515.3,2.589]
[1744307922635,1.32068,1515.4,1515.3,3.90976]
[1744307922834,1.32068,1515.4,1515.3,2.589]
[1744307923038,0.00990851,1515.5,1515.3,2.589]
[1744307923227,0.00990851,1515.5,1515.4,4.52842]
[1744307923630,0.00990851,1515.5,1515.4,7.11742]
[1744307923826,0.00990851,1515.5,1515.4,5.7968]
[1744307924030,1.33049851,1515.5,1515.4,5.7968]
[1744307924223,1.33049851,1515.5,1515.4,3.2078]
[1744307924540,1.32076,1515.3,1515.2,5.7968]
[1744307924729,0.00990851,1515.5,1515.3,1.32073]
[1744307925037,1.33049851,1515.5,1515.4,2.4724]
[1744307925735,1.32076,1515.3,1515.2,3.2078]
[1744307925937,1.32076,1515.3,1515.2,7.00105]
[1744307926328,1.32076,1515.3,1515.2,7.00103]
[1744307926543,1.32076,1515.3,1515.2,3.2078]
[1744307926841,1.32085,1515.2,1515.1,2.5367]
[1744307927141,1.32094,1515.1,1515.0,5.0948]
[1744307927640,3.3025,1515.1,1514.8,2.5367]
[1744307927935,1.32111,1514.9,1514.8,5.0796]
[1744307928236,3.79858,1515.0,1514.8,5.0796]
[1744307928437,1.32108,1515.0,1514.9,5.7507]
[1744307929836,1.32111,1514.9,1514.8,2.5367]
[1744307930137,3.79861,1514.9,1514.8,2.5367]
[1744307930735,1.32129,1514.7,1514.6,0.00990851]
[1744307932231,15.38109,1514.7,1514.6,8.51e-06]
[1744307932441,1.32181,1514.1,1514.0,14.96525759]
[1744307932639,8.36181,1514.1,1514.0,14.96525759]
[1744307933240,8.36181,1514.1,1514.0,17.66695759]
[1744307933940,1.32181,1514.1,1514.0,18.98885759]
[1744307934141,0.00990851,1514.2,1514.0,18.98882759]
[1744307934335,1.33162851,1514.2,1514.1,3.2078]
[1744307934544,0.00990851,1514.2,1514.1,4.52961]
[1744307934733,0.00990851,1514.2,1514.1,7.19421]
[1744307935038,1.33162851,1514.2,1514.1,5.8724]
[1744307935236,1.33162851,1514.2,1514.1,7.19421]
[1744307935436,0.00990851,1514.2,1514.1,7.19421]
[1744307935638,1.33162851,1514.2,1514.1,5.8724]
[1744307936237,1.33162851,1514.2,1514.1,3.2078]
[1744307936643,1.3219,1514.0,1513.9,3.21770851]
[1744307936837,4.03567,1514.1,1513.9,4.53961851]
[1744307937036,4.03567,1514.1,1514.0,2.514]
[1744307937648,1.3219,1514.0,1513.9,3.21770851]
[1744307937848,4.0357,1514.0,1513.9,3.21770851]
[1744307938041,4.0357,1514.0,1513.9,0.00990851]
[1744307941247,0.00990851,1514.2,1513.9,8.21770851]
[1744307941443,0.00990851,1514.2,1514.1,4.52961]
[1744307941943,2.7036,1514.7,1514.1,8.2078]
[1744307942145,6.51063,1514.9,1514.5,3.2078]
[1744307942450,1.32164,1514.3,1514.2,3.94662]
[1744307942745,7.022,1514.5,1514.2,2.6249]
[1744307942946,1.32164,1514.3,1514.2,2.6249]
[1744307943149,2.76280851,1514.5,1514.2,2.6249]
[1744307943451,7.022,1514.4,1513.9,2.61540851]
[1744307943637,1.32186,1514.1,1514.0,2.7078]
[1744307944446,1.32186,1514.1,1513.9,2.61540851]
[1744307944447,1.3219,1514.0,1513.9,8.51e-06]
[1744307944639,17.0768,1514.0,1513.9,8.51e-06]
[1744307944838,18.869,1514.0,1513.9,8.51e-06]
[1744307945240,22.0768,1514.0,1513.9,8.51e-06]
[1744307945437,6.846,1514.0,1513.9,8.51e-06]
[1744307945643,1.3219,1514.0,1513.9,8.51e-06]
[1744307945846,1.3219,1514.0,1513.9,2.70780851]
[1744307946750,1.3219,1514.0,1513.9,4.02978851]
[1744307946950,1.3219,1514.0,1513.9,2.70780851]
[1744307947251,11.1941,1514.4,1513.9,2.70780851]
[1744307947252,14.49803,1514.4,1513.9,2.70780851]
[1744307947545,1.32181,1514.1,1514.0,3.2078]
[1744307947739,1.3219,1514.0,1513.9,2.75830851]
[1744307947944,1.32184,1514.1,1514.0,1.32189]
[1744307948143,5.93571,1514.3,1514.0,3.2078]
[1744307948347,1.3219,1514.0,1513.9,8.51e-06]
[1744307949242,3.85537,1514.1,1513.9,8.51e-06]
[1744307949448,2.5335,1514.3,1514.0,4.52963]
[1744307949649,1.32181,1514.1,1514.0,4.52963]
[1744307949954,0.00990851,1514.5,1514.4,1.32155]
[1744307950155,0.00990851,1514.5,1514.4,4.52935]
[1744307951354,3.30419,1514.3,1514.0,3.2078]
[1744307951557,1.3219,1514.0,1513.9,8.51e-06]
[1744307952143,4.5297,1514.0,1513.9,8.51e-06]
[1744307952349,9.5297,1514.0,1513.9,8.51e-06]
[1744307952849,6.3219,1514.0,1513.9,8.51e-06]
[1744307953145,14.8224,1514.0,1513.9,8.51e-06]
[1744307953350,6.6146,1514.0,1513.9,8.51e-06]
[1744307953953,3.9177,1514.0,1513.9,8.51e-06]
[1744307954254,1.3219,1514.0,1513.9,8.51e-06]
[1744307954649,2.5958,1514.2,1513.9,8.51e-06]
[1744307954848,8.4847,1514.4,1514.0,4.52967]
[1744307954849,3.30389,1514.4,1514.0,4.52967]
[1744307955057,1.32174,1514.2,1514.1,1.3218]
[1744307955350,3.21770851,1514.5,1514.0,3.2078]
[1744307955551,0.00990851,1514.5,1514.2,3.2078]
[1744307955746,0.00990851,1514.5,1514.4,4.52935]
[1744307956350,1.33136851,1514.5,1514.4,3.2078]
[1744307956550,0.00990851,1514.5,1514.4,4.52935]
[1744307957353,1.33136851,1514.5,1514.4,3.2078]
[1744307957556,1.32164,1514.3,1514.2,3.2078]
[1744307957853,1.32172,1514.2,1514.1,2.6648]
[1744307958054,1.32171,1514.3,1514.1,3.98657]
[1744307958253,1.32171,1514.3,1513.9,8.51e-06]
[1744307958254,9.81661,1514.2,1513.9,8.51e-06]
[1744307958452,1.3219,1514.0,1513.9,8.51e-06]
[1744307958659,9.5297,1514.0,1513.9,8.51e-06]
[1744307958958,12.1935,1514.0,1513.9,8.51e-06]
[1744307959556,18.0455,1514.0,1513.9,8.51e-06]
[1744307960151,13.0455,1514.0,1513.9,8.51e-06]
[1744307960347,18.0455,1514.0,1513.9,8.51e-06]
[1744307960851,9.8377,1514.0,1513.9,8.51e-06]
[1744307963456,18.0455,1514.0,1513.9,8.51e-06]
[1744307965661,3.30569,1513.6,1513.2,2.5902]
[1744307965856,1.32251,1513.3,1513.2,2.5902]
[1744307966062,1.32268,1513.1,1513.0,2.7398]
[1744307966263,1.32268,1513.1,1513.0,5.9476]
[1744307966759,1.32286,1512.9,1512.8,2.7369]
[1744307967555,1.32284,1513.0,1512.8,4.05982]
[1744307967864,1.32286,1512.9,1512.8,2.7369]
[1744307968163,1.32286,1512.9,1512.8,5.2857]
[1744307968365,3.98992,1513.0,1512.8,5.2857]
[1744307968561,3.98992,1513.0,1512.9,2.5488]
[1744307968761,5.8749,1513.0,1512.7,0.00990851]
[1744307968968,1.32295,1512.8,1512.7,0.00990851]
[1744307969468,1.32292,1512.9,1512.7,5.00990851]
[1744307969765,1.32292,1512.9,1512.8,4.53075]
[1744307969965,1.32292,1512.9,1512.8,3.2078]
[1744307970161,1.32292,1512.9,1512.8,4.53075]
[1744307970365,10.31174,1513.1,1512.7,3.88168851]
[1744307970566,1.32295,1512.8,1512.7,2.55870851]
[1744307970967,2.5431,1513.0,1512.8,1.32294]
[1744307971161,3.86592,1513.0,1512.9,2.5065]
[1744307972067,1.32282,1513.0,1512.9,2.5065]
[1744307972271,3.86592,1513.0,1512.9,2.5065]
[1744307972562,1.32282,1513.0,1512.9,2.5065]
[1744307973967,1.32282,1513.0,1512.8,3.2078]
[1744307973968,1.32286,1512.9,1512.8,3.2078]
[1744307974476,1.32295,1512.8,1512.7,0.00990851]
[1744307974968,1.32295,1512.8,1512.7,1.33293851]
[1744307975269,1.32295,1512.8,1512.7,0.00990851]
[1744307975468,1.32293,1512.9,1512.8,1.32295]
[1744307975674,1.32293,1512.9,1512.8,4.53075]
[1744307975859,1.32293,1512.9,1512.8,3.2078]
[1744307976165,1.32295,1512.8,1512.7,2.40270851]
[1744307976371,1.32292,1512.9,1512.8,4.53074]
[1744307976570,1.32295,1512.8,1512.7,2.40270851]
[1744307976771,1.32295,1512.8,1512.7,3.72573851]
[1744307977070,1.32284,1513.0,1512.9,1.32284]
[1744307977270,10.31173,1513.1,1512.7,3.72565851]
[1744307977271,1.32295,1512.8,1512.7,3.72565851]
[1744307977472,3.30694,1513.0,1512.7,5.61050851]
[1744307977772,1.32295,1512.8,1512.7,6.93345851]
[1744307977964,1.32295,1512.8,1512.7,6.93353851]
[1744307978865,1.32295,1512.8,1512.7,5.61050851]
[1744307979972,1.32295,1512.8,1512.7,6.93353851]
[1744307980173,1.32291,1512.9,1512.8,1.32291]
[1744307980465,1.32293,1512.9,1512.8,1.32293]
[1744307980672,1.32283,1513.0,1512.9,1.32282]
[1744307980874,3.30673,1513.1,1512.8,1.32289]
[1744307981073,1.32287,1512.9,1512.8,3.2078]
[1744307983473,1.32295,1512.8,1512.7,0.00990851]
[1744307983680,1.32295,1512.8,1512.7,1.33293851]
[1744307983879,1.32295,1512.8,1512.7,1.33287851]
[1744307984376,1.32295,1512.8,1512.7,0.00990851]
[1744307984570,114.16395,1512.8,1512.7,8.51e-06]
[1744307984883,125.04625,1512.8,1512.7,8.51e-06]
[1744307989778,7.17495,1512.8,1512.7,8.51e-06]
[1744307989985,9.73715,1512.8,1512.7,8.51e-06]
[1744307991484,3.88515,1512.8,1512.7,8.51e-06]
[1744307991682,14.73715,1512.8,1512.7,8.51e-06]
[1744307991984,115.59415,1512.8,1512.7,8.51e-06]
[1744307992180,1.32347,1512.2,1512.1,3.2078]
[1744307992375,8.33447,1512.2,1512.1,3.2078]
[1744307993781,8.33447,1512.2,1512.1,8.2078]
[1744307993978,8.33447,1512.2,1512.1,3.2078]
[1744307994790,1.32347,1512.2,1512.1,5.0]
[1744307994986,1.32356,1512.1,1512.0,5.68760851]
[1744307995287,1.32356,1512.1,1512.0,2.47980851]
[1744307995483,8.31456,1512.1,1512.0,0.00990851]
[1744307996090,10.61306,1512.1,1512.0,8.51e-06]
[1744308000394,15.61306,1512.1,1512.0,8.51e-06]
[1744308000979,116.49406,1512.1,1512.0,8.51e-06]
[1744308001181,10.61306,1512.1,1512.0,5.00000851]
[1744308001484,8.31456,1512.1,1512.0,5.00000851]
[1744308001986,8.31456,1512.1,1512.0,8.51e-06]
[1744308002388,10.46996,1512.1,1512.0,8.51e-06]
[1744308002689,15.46996,1512.1,1512.0,8.51e-06]
[1744308002989,12.85886,1512.1,1512.0,8.51e-06]
[1744308004689,6.61355,1513.1,1512.0,5.00000851]
[1744308004992,1.3233,1512.4,1512.3,3.2078]
[1744308005182,1.32324,1512.5,1512.3,4.53114]
[1744308005383,6.994,1512.7,1512.3,3.2078]
[1744308005584,1.32321,1512.5,1512.4,3.2078]
[1744308005896,1.32338,1512.3,1512.2,2.2833]
[1744308006186,1.32347,1512.2,1512.1,5.5578]
[1744308006490,1.32347,1512.2,1512.1,4.6333]
[1744308006885,1.32356,1512.1,1512.0,8.51e-06]
[1744308007092,11.80096851,1512.1,1512.0,8.51e-06]
[1744308007292,8.00106851,1512.1,1512.0,8.51e-06]
[1744308007495,5.79216851,1512.1,1512.0,8.51e-06]
[1744308007791,1.32356,1512.1,1512.0,5.00000851]
[1744308008202,1.32356,1512.1,1512.0,7.27440851]
[1744308008501,1.32356,1512.1,1512.0,2.27440851]
[1744308009990,8.32746851,1512.1,1512.0,8.51e-06]
[1744308010497,8.31756,1512.1,1512.0,8.51e-06]
[1744308010696,8.31756,1512.1,1512.0,2.19520851]
[1744308010897,11.53526851,1512.1,1512.0,8.51e-06]
[1744308011189,17.06827896,1512.1,1512.0,8.51e-06]
[1744308011389,17.06827896,1512.1,1511.7,3.1979]
[1744308011390,1.32382,1511.8,1511.7,3.1979]
[1744308011590,1.32391,1511.7,1511.6,2.1952]
[1744308011783,10.54661,1511.7,1511.6,2.1952]
[1744308012087,1.32443,1511.1,1511.0,10.04105864]
[1744308012289,1.32443,1511.1,1511.0,12.23625864]
[1744308012790,1.32443,1511.1,1511.0,17.23625864]
[1744308012995,1.33431851,1511.2,1511.0,18.56070864]
[1744308013197,1.33427851,1511.2,1511.1,5.5062]
[1744308013592,1.33427851,1511.2,1511.1,11.83063]
[1744308013593,0.00990851,1511.2,1511.1,11.83063]
[1744308013792,1.33425851,1511.2,1511.1,10.5062]
[1744308013992,0.00990851,1511.2,1511.1,11.83063]
[1744308014193,6.994,1511.6,1511.1,11.83057]
[1744308014383,1.32425,1511.4,1511.3,3.2078]
[1744308014698,1.32416,1511.5,1511.3,4.53203]
[1744308014896,1.32417,1511.4,1511.3,3.2078]
[1744308015290,13.61406,1511.6,1511.3,3.2078]
[1744308015291,1.33406851,1511.5,1511.3,3.2078]
[1744308015589,1.32417,1511.4,1511.3,3.2078]
[1744308016997,0.00990851,1511.5,1511.4,1.32417]
[1744308017198,0.00990851,1511.5,1511.3,4.53203]
[1744308017400,1.33398851,1511.5,1511.4,2.3225]
[1744308017594,0.00990851,1511.5,1511.4,3.64667]
[1744308017797,0.00990851,1511.5,1511.4,8.64667]
[1744308018193,1.32385,1511.8,1511.7,1.32389]
[1744308018505,2.1953,1512.1,1511.8,1.32382]
[1744308018702,1.32365,1512.0,1511.9,5.4104]
[1744308019305,10.30451,1512.3,1511.9,10.4104]
[1744308019600,1.32365,1512.0,1511.9,5.4104]
[1744308019994,3.50775,1512.0,1511.9,5.4104]
[1744308021407,3.50775,1512.0,1511.9,3.2078]
[1744308021705,0.00990851,1512.1,1511.9,3.2078]
[1744308022000,1.32365,1512.0,1511.9,3.2078]
[1744308023002,1.32373,1511.9,1511.8,0.00990851]
[1744308023195,8.31873,1511.9,1511.8,8.51e-06]
[1744308023398,15.57053,1511.9,1511.8,8.51e-06]
[1744308023798,10.57053,1511.9,1511.8,8.51e-06]
[1744308024506,15.57053,1511.9,1511.8,8.51e-06]